Cogmind - Beta 12 X4 @@@ ROGUE MODE // 2022.12.12 @ 23:28:00 Player: KTG-V3 Result: Self-destructed Performance ------------- Evolutions (4) 2000 Regions Visited (11) 2200 Robots Destroyed (147) 735 Value Destroyed (3960) 3960 Prototype IDs (11) 220 Alien Tech Used (0) 0 Bonus (61) 61 TOTAL SCORE: 9176 Bonus ------- High Alert Combat Kills 61 Cogmind --------- Core Integrity 488/850 Matter 156/300 Energy 65/100 System Corruption 0% Temperature Cool (0) Movement Treading (167) Location -6/Factory Parts ------- > --- POWER (2) -------- (None) > --- PROPULSION (5) --- Treaded Armored Exoskeleton > --- UTILITY (5) ------ Armored Scrap Engine Cooling System High-capacity Storage Unit Graphene Brace > --- WEAPON (3) ------- RU-N14's Throwing Claymores > --- INVENTORY (20) --- Improved Cooling System Layered Light Armor Plating Hacking Suite Authchip [Device] Long-range Tractor Beam Improved Assault Rifle Flak Cannon Bore Cannon Grenade Launcher RU-N14's Throwing Claymores (10) RU-N14's Throwing Claymores (10) CR-A16's Behemoth Slayer Peak State ------------ > --- POWER ------------ Deuterium-Fission Core > --- PROPULSION ------- Treaded Armored Exoskeleton > --- UTILITY ---------- Armored Scrap Engine High-capacity Storage Unit Layered Light Armor Plating Layered Light Armor Plating > --- WEAPON ----------- Heavy Kinetic Construct/C CR-A16's Behemoth Slayer > --- INVENTORY -------- Deuterium Engine Improved Deuterium Engine Armored Treads Medium Treads Cooling System Improved Cooling System Layered Light Armor Plating Graphene Brace Hacking Suite Authchip [Device] Long-range Tractor Beam Improved Assault Rifle Flak Cannon Bore Cannon Bore Cannon Grenade Launcher RU-N14's Throwing Claymores RU-N14's Throwing Claymores RU-N14's Throwing Claymores RU-N14's Throwing Claymores [Rating: 73] Favorites ----------- Power Constructs Engine Ion Engine Power Core Constructs Propulsion Constructs Treads Constructs Utility Large Storage Unit Device Cooling System Storage Large Storage Unit Processor Advanced Targeting Computer Protection Layered Light Armor Plating Weapon Constructs Energy Gun Medium Laser Ballistic Gun Enhanced Autogun Ballistic Cannon Constructs Launcher Grenade Launcher Special Weapon RU-N14's Throwing Claymores Piercing Weapon CR-A16's Behemoth Slayer Build | -11 -10 -10 -10 -9 -8 -7 -7 -7 -7 -6 -6 ------- Run | Scr Mat Min Exi Min Mat Fac Low Low Zio Pro Fac Slots Evolved 8 | . . . . . 4 2 . . . . 2 Power 1 | . . . . . . . . . . . 1 Propulsion 3 | . . . . . 1 1 . . . . 1 Utility 3 | . . . . . 2 1 . . . . . Weapon 1 | . . . . . 1 . . . . . . Parts Attached 86 | 6 12 3 . 2 31 6 8 4 6 3 5 Power 6 | 1 2 . . . 3 . . . . . . Engine 6 | 1 2 . . . 3 . . . . . . Core . | . . . . . . . . . . . . Reactor . | . . . . . . . . . . . . Propulsion 10 | 2 1 . . . 6 1 . . . . . Treads 10 | 2 1 . . . 6 1 . . . . . Leg . | . . . . . . . . . . . . Wheel . | . . . . . . . . . . . . Hover . | . . . . . . . . . . . . Flight . | . . . . . . . . . . . . Utility 27 | 1 2 . . . 12 3 2 2 2 2 1 Device 11 | . 1 . . . 5 2 . 1 . 1 1 Storage 3 | 1 1 . . . . . . . 1 . . Processor 2 | . . . . . 2 . . . . . . Hackware . | . . . . . . . . . . . . Protection 11 | . . . . . 5 1 2 1 1 1 . Artifact . | . . . . . . . . . . . . Weapon 43 | 2 7 3 . 2 10 2 6 2 4 1 4 Energy Gun 11 | 1 4 1 . 1 4 . . . . . . Energy Cannon . | . . . . . . . . . . . . Ballistic Gun 18 | 1 2 1 . . 6 2 4 1 1 . . Ballistic Cannon 4 | . . . . . . . . . 2 . 2 Launcher 6 | . 1 1 . 1 . . 2 1 . . . Special Weapon 3 | . . . . . . . . . 1 . 2 Impact Weapon . | . . . . . . . . . . . . Slashing Weapon . | . . . . . . . . . . . . Piercing Weapon 1 | . . . . . . . . . . 1 . Special Melee Weapon . | . . . . . . . . . . . . Unidentified Prototypes 4 | . . . . . 3 . . . 1 . . Parts Lost 9 | . 1 . . . 3 . 1 . . . 4 Power 1 | . . . . . . . . . . . 1 Propulsion 2 | . . . . . 1 . . . . . 1 Utility 1 | . . . . . 1 . . . . . . Weapon 5 | . 1 . . . 1 . 1 . . . 2 Highest Loss Streak 2 | . 1 . . . 2 . 1 . . . 2 To Critical Strikes . | . . . . . . . . . . . . Average Slot Usage (%) 73 | . 96 100 100 100 93 81 62 61 60 61 50 Engine 5 | . 14 14 14 14 9 6 7 . . . 2 Core 2 | . . . . . . . . 6 7 7 1 Treads 15 | . 27 28 28 28 26 25 10 7 7 7 6 Device 13 | . 11 14 14 14 9 15 15 15 15 14 15 Storage 8 | . 14 14 14 14 9 7 7 7 7 7 6 Protection 5 | . . . . . 3 7 6 7 6 7 3 Energy Gun 3 | . 13 14 14 13 6 1 . . . . . Energy Cannon 1 | . . . . . . 3 3 . . . . Ballistic Gun 7 | . 13 14 14 14 19 10 5 6 1 . . Ballistic Cannon 4 | . . . . . . 1 3 7 11 7 8 Naked Turns . | . . . . . . . . . . . . Heaviest Build 76 | 11 31 29 29 29 64 56 52 46 72 71 76 Greatest Support 109 | 40 40 40 40 40 60 90 90 64 109 109 109 Greatest Overweight (x) 1 | . . . . . 1 . 1 . 1 . . Average Overweight (x) . | . . . . . . . . . . . . Largest Inventory Capacity 20 | 8 15 15 15 15 15 15 15 15 20 20 20 Average Capacity 15 | 7 12 15 15 15 15 15 15 15 17 20 20 Most Carried 20 | 7 15 15 15 15 15 15 15 15 20 20 17 Average Carried 15 | 4 12 15 15 15 14 14 14 14 16 19 16 Final Capacity 20 | 8 15 15 15 15 15 15 15 15 20 20 20 Final Carried 20 | 7 15 15 15 15 15 15 15 15 20 17 12 Scrap Engine Consumption 57 | . . . . . . 28 9 3 2 6 9 Constructs Created 4 | . . . . . . 4 . . . . . Constructs Modified 19 | . . . . . . 7 4 1 1 3 3 Class Distribution -------------------- 63% | Construct 22% | Mutant 6% | Gunner 3% | Tank 3% | Scavenger-Tank Dominant Class ---------------- Mutant | -10/Materials Mutant | -10/Mines Mutant | -10/Exiles Mutant | -9/Mines Gunner | -8/Materials Construct | -7/Factory Construct | -7/Lower Caves Construct | -7/Lower Caves Construct | -7/Zion Construct | -6/Proximity Caves Construct | -6/Factory Resources | -11 -10 -10 -10 -9 -8 -7 -7 -7 -7 -6 -6 ----------- Run | Scr Mat Min Exi Min Mat Fac Low Low Zio Pro Fac Matter Collected 2683 | 272 238 80 . 26 838 593 267 160 67 82 60 Remotely . | . . . . . . . . . . . . Salvage Created 6406 | 153 496 69 . 22 1839 1227 723 247 . 467 1163 Parts 355 | 12 29 10 . 3 86 71 30 23 . 21 70 Haulers Intercepted 5 | . 1 . . . 3 1 . . . . . Recyclers Shooed 13 | . 1 . . . 6 2 . . . . 4 Parts Field Recycled . | . . . . . . . . . . . . Retrieved Matter . | . . . . . . . . . . . . Parts Self-Destructed 41 | . . . . . . . 15 11 . 15 . Prevented 2 | . . . . . . . 2 . . . . Kills | -11 -10 -10 -10 -9 -8 -7 -7 -7 -7 -6 -6 ------- Run | Scr Mat Min Exi Min Mat Fac Low Low Zio Pro Fac Combat Hostiles Destroyed 82 | . 10 6 . 3 21 12 11 5 . 4 10 Guns 43 | . 7 4 . 1 21 9 . 1 . . . Cannons 19 | . . . . . . 3 8 1 . 3 4 AOE 18 | . 3 2 . 2 . . 3 3 . . 5 Classes Destroyed 19 | 2 6 . . . 3 2 3 . . 2 1 Worker 9 | . 3 . . . 3 . . . . . 3 Builder 14 | . . . . . 1 1 . . . . 12 Tunneler 6 | 3 . . . . 1 2 . . . . . Hauler 5 | . 1 . . . 3 1 . . . . . Recycler 20 | 1 . . . . 7 6 . . . . 6 Operator 4 | . 1 . . . 1 2 . . . . . Watcher 5 | . 2 . . . 2 1 . . . . . Swarmer 23 | . 3 6 . 3 4 . 3 4 . . . Grunt 31 | . 7 . . . 13 5 4 . . . 2 Brawler 1 | . . . . . . 1 . . . . . Sentry 6 | . . . . . 3 2 . . . 1 . Specialist 2 | . . . . . . . . . . . 2 Hunter 6 | . . . . . . . . . . 2 4 Programmer 6 | . . . . . . 4 . 1 . . 1 Heavy 2 | . . . . . 1 . . . . . 1 Behemoth 1 | . . . . . . . . . . 1 . Samaritan 5 | . . . . . . . 2 3 . . . Thug 3 | . . . . . . . 3 . . . . Butcher 2 | . . . . . . . 2 . . . . Mutant 1 | . . . . . . . 1 . . . . Best Kill Streak 15 | 4 4 3 . 3 15 5 4 4 . 2 14 Combat Bots Only 4 | . 3 3 . 3 4 3 4 4 . 2 3 Max Kills in Single Turn 3 | 1 2 2 . 2 2 1 2 3 . 1 3 Gunslinging 1 | . . . . . 1 . . . . . . Exploded 3 | . 2 2 . 2 . . 2 3 . . 2 Melee . | . . . . . . . . . . . . Uniques/NPCs Destroyed . | . . . . . . . . . . . . Combat | -11 -10 -10 -10 -9 -8 -7 -7 -7 -7 -6 -6 -------- Run | Scr Mat Min Exi Min Mat Fac Low Low Zio Pro Fac Damage Taken 6263 | . 480 60 . 49 945 651 363 263 . 1012 2440 Core 817 | . 94 7 . 26 70 55 59 31 . 113 362 Absorbed by Shields . | . . . . . . . . . . . . Regen/Repaired (Parts) 1318 | . 95 . . . . 39 154 . 268 525 237 Core Remaining (%) 74 | 100 . . . 49 87 . . . . 63 . Volleys Fired 327 | 12 55 7 . 4 83 63 32 14 . 16 41 Largest 3 | 2 2 2 . 2 3 3 2 2 . 1 2 Hottest 128 | 60 70 70 . 70 120 123 123 128 . 98 117 Shots Fired 701 | 24 108 14 . 7 245 157 53 17 . 16 60 Gun 533 | 24 105 13 . 6 245 117 21 2 . . . Cannon 140 | . . . . . . 40 29 14 . 16 41 Launcher 9 | . 3 1 . 1 . . 3 1 . . . Special 19 | . . . . . . . . . . . 19 Kinetic 431 | 12 53 7 . 3 180 112 21 2 . . 41 Thermal 199 | . 21 6 . 3 65 45 29 14 . 16 . Explosive 28 | . 3 1 . 1 . . 3 1 . . 19 Electromagnetic 43 | 12 31 . . . . . . . . . . Robot Hit Streak 22 | 5 11 6 . 7 19 8 13 4 . 7 22 Robot Miss Streak 5 | 3 4 1 . . 5 4 1 4 . 1 3 Penetration Max 1 | . . . . . . . . . . . 1 Secondary Targets 4 | . 1 1 . . 2 . . . . . . Max Gunslinging Chain 1 | . 1 1 . . 1 . . . . . . Shots Hit Robots 461 | 17 72 7 . 1 170 89 37 8 . 21 39 Core Hits 242 | 6 29 7 . 3 73 42 21 8 . 7 46 Critical Kills 2 | . . . . . . . . . . . 2 Critical Parts Destroyed 8 | . 2 . . . . 1 . . . . 5 Critical Strikes 26 | . 4 1 . . 6 1 . 1 . 2 11 Burn 8 | . 1 1 . . 6 . . . . . . Destroy 10 | . 2 . . . . 1 . . . . 7 Blast 5 | . . . . . . . . 1 . 2 2 Corrupt 1 | . 1 . . . . . . . . . . Sever 2 | . . . . . . . . . . . 2 Melee Attacks 10 | . . . . . . . . . . 10 . Impact . | . . . . . . . . . . . . Slashing . | . . . . . . . . . . . . Piercing 10 | . . . . . . . . . . 10 . Sneak Attacks . | . . . . . . . . . . . . Combat Hostiles . | . . . . . . . . . . . . Follow-up Attacks . | . . . . . . . . . . . . Damage Inflicted 13871 | 150 1059 184 . 148 2616 2277 1494 519 . 901 4523 Guns 5019 | 150 769 77 . 14 2616 1196 178 19 . . . Cannons 3975 | . . . . . . 855 1160 324 . 700 936 Explosions 4213 | . 290 107 . 134 . 224 156 176 . . 3126 Melee 201 | . . . . . . . . . . 201 . Ramming 2 | . . . . . . 2 . . . . . Kinetic 4647 | 41 314 24 . . 1857 1278 178 19 . . 936 Thermal 4247 | . 240 53 . 14 759 997 1160 324 . 700 . Explosive 3900 | . 201 107 . 134 . . 156 176 . . 3126 Electromagnetic 413 | 109 304 . . . . . . . . . . Impact . | . . . . . . . . . . . . Slashing 461 | . . . . . . . . . . . 461 Piercing 201 | . . . . . . . . . . 201 . Highest Corruption 5 | . 5 5 5 5 . 3 3 3 3 . . Average Corruption 3 | . 4 5 5 5 . 1 3 3 3 . . Corruption Purged . | . . . . . . . . . . . . Corruption Blocked . | . . . . . . . . . . . . Effects 134 | . 17 14 4 10 . 18 40 29 2 . . Message Errors 29 | . 2 3 2 3 . 5 8 4 2 . . Matter Fused 29 | . 6 1 . 3 . 4 8 7 . . . Heat Flow Errors 17 | . 4 2 . . . 3 4 4 . . . Energy Discharges 18 | . 3 1 2 1 . 2 6 3 . . . Data Loss (minor) 21 | . 1 4 . 3 . 1 8 4 . . . Data Loss (major) 9 | . . 1 . . . 1 3 4 . . . Misfires 6 | . 1 1 . . . 2 1 1 . . . Alerts 4 | . . 1 . . . . 1 2 . . . Weapon Failures 1 | . . . . . . . 1 . . . . Overload Shots . | . . . . . . . . . . . . Overflow Damage 598 | . 14 . . 5 . 205 71 41 . 90 172 Projectiles 382 | . . . . . . 119 71 41 . 90 61 Explosions 216 | . 14 . . 5 . 86 . . . . 111 Melee . | . . . . . . . . . . . . Knockbacks 13 | . . . . . . 3 . . . . 10 Impact . | . . . . . . . . . . . . Kinetic 10 | . . . . . . 3 . . . . 7 Secondary 3 | . . . . . . . . . . . 3 Self-Inflicted Damage 157 | . 35 32 . . . 60 . 30 . . . Shots 4 | . 1 1 . . . 1 . 1 . . . Rammed 1 | . . . . . . 1 . . . . . Targets Rammed 1 | . . . . . . 1 . . . . . Kicked . | . . . . . . . . . . . . Crushed . | . . . . . . . . . . . . Highest Temperature 380 | 40 232 188 . 10 380 214 240 222 . 78 8 Average Temperature 60 | 15 58 88 . 7 106 29 66 53 . 33 4 Received Heat Transfer 957 | . 264 . . . 297 93 63 . . 132 108 Effects 1 | . . . . . 1 . . . . . . Interference 1 | . . . . . 1 . . . . . . Siege Activations . | . . . . . . . . . . . . Robots Corrupted . | . . . . . . . . . . . . Combat Hostiles . | . . . . . . . . . . . . Parts Fried 1 | . . . . . . . . . . . 1 Impact Corruptions 2 | . . . . . . . . . . . 2 Robots Melted . | . . . . . . . . . . . . Combat Hostiles . | . . . . . . . . . . . . Parts Melted 4 | . . . . . 1 2 1 . . . . Heat Transferred 6381 | . 668 222 . 37 2257 1107 1350 222 . 518 . Parts Sabotaged . | . . . . . . . . . . . . Parts Stolen . | . . . . . . . . . . . . Parts Stripped . | . . . . . . . . . . . . Power Chain Reactions 1 | . 1 . . . . . . . . . . Missiles Intercepted . | . . . . . . . . . . . . Alert | -11 -10 -10 -10 -9 -8 -7 -7 -7 -7 -6 -6 ------- Run | Scr Mat Min Exi Min Mat Fac Low Low Zio Pro Fac Peak Influence 484 | 20 208 194 . 94 484 271 . . . . 416 Initial 100 | . 13 39 . . . 100 . . . . . Average 138 | 9 102 146 . 82 219 137 . . . . 121 Maximum Alert Level 2 | . 1 . . . 2 1 . . . . 2 Low Security (%) 79 | 100 99 100 . 100 44 76 . . . . 76 Level 1 18 | . . . . . 43 23 . . . . 20 Level 2 2 | . . . . . 11 . . . . . 2 Level 3 . | . . . . . . . . . . . . Level 4 . | . . . . . . . . . . . . Level 5 . | . . . . . . . . . . . . High Security . | . . . . . . . . . . . . Max Security . | . . . . . . . . . . . . Squads Dispatched 18 | . 3 . . . 2 7 . . . . 6 Investigation 5 | . 1 . . . 1 3 . . . . . Extermination 4 | . . . . . . 3 . . . . 1 Reinforcement 9 | . 2 . . . 1 1 . . . . 5 Assault . | . . . . . . . . . . . . Garrison . | . . . . . . . . . . . . Intercept . | . . . . . . . . . . . . Searches Triggered . | . . . . . . . . . . . . Construction Impeded 2 | . . . . . . . . . . . 2 Haulers Reinforced . | . . . . . . . . . . . . Active Scanning Responses . | . . . . . . . . . . . . Cargo Convoy Interrupts . | . . . . . . . . . . . . Stealth | -11 -10 -10 -10 -9 -8 -7 -7 -7 -7 -6 -6 --------- Run | Scr Mat Min Exi Min Mat Fac Low Low Zio Pro Fac Distress Signals 4 | . 1 . . . 3 . . . . . . Communications Jammed . | . . . . . . . . . . . . Distress Signals . | . . . . . . . . . . . . Times Spotted 110 | . 19 6 . 3 30 17 11 5 . 4 15 Peak Tracking Total 4 | . 3 3 . 3 4 3 4 4 . 1 4 Tactical Retreats 3 | . . . . . 2 . . . . . 1 Traps | -11 -10 -10 -10 -9 -8 -7 -7 -7 -7 -6 -6 ------- Run | Scr Mat Min Exi Min Mat Fac Low Low Zio Pro Fac Traps Triggered 7 | . 4 . . . . 3 . . . . . Indirectly . | . . . . . . . . . . . . Trap Hack Attempts . | . . . . . . . . . . . . Triggered . | . . . . . . . . . . . . Disarmed . | . . . . . . . . . . . . Reprogrammed . | . . . . . . . . . . . . Reused . | . . . . . . . . . . . . Traps Extracted . | . . . . . . . . . . . . Installed . | . . . . . . . . . . . . Triggered 1 | . . . . . . . 1 . . . . Machines | -11 -10 -10 -10 -9 -8 -7 -7 -7 -7 -6 -6 ---------- Run | Scr Mat Min Exi Min Mat Fac Low Low Zio Pro Fac Machines Disabled 10 | . 2 1 . . 1 4 . . . . 2 Max in Single Turn 2 | . 1 1 . . 1 2 . . . . 2 Machines Sabotaged . | . . . . . . . . . . . . Overloaded Fab Kills . | . . . . . . . . . . . . Hacking | -11 -10 -10 -10 -9 -8 -7 -7 -7 -7 -6 -6 --------- Run | Scr Mat Min Exi Min Mat Fac Low Low Zio Pro Fac Machines Accessed 18 | . 7 . . . 5 6 . . . . . Terminals 13 | . 4 . . . 5 4 . . . . . Fabricators 1 | . . . . . . 1 . . . . . Repair Stations 2 | . 1 . . . . 1 . . . . . Recycling Units 2 | . 2 . . . . . . . . . . Scanalyzers . | . . . . . . . . . . . . Garrison Access . | . . . . . . . . . . . . Total Hacks 51 | . 25 . . . 15 11 . . . . . Successful 24 | . 16 . . . 4 4 . . . . . Failed 27 | . 9 . . . 11 7 . . . . . Catastrophic 7 | . 1 . . . 4 2 . . . . . Database Lockouts . | . . . . . . . . . . . . Manual 24 | . 12 . . . 12 . . . . . . Terminals 43 | . 19 . . . 15 9 . . . . . Fabricators 1 | . . . . . . 1 . . . . . Repair Stations 5 | . 4 . . . . 1 . . . . . Recycling Units 2 | . 2 . . . . . . . . . . Scanalyzers . | . . . . . . . . . . . . Garrison Access . | . . . . . . . . . . . . Terminal Hacks 15 | . 9 . . . 3 3 . . . . . Part Schematic 1 | . 1 . . . . . . . . . . Robot Analysis 2 | . 2 . . . . . . . . . . Prototype ID Bank 1 | . 1 . . . . . . . . . . Branch Access Points 2 | . . . . . 1 1 . . . . . Unreport Threat 1 | . . . . . 1 . . . . . . Locate Traps 4 | . 2 . . . 1 1 . . . . . Hauler Manifests 2 | . 1 . . . . 1 . . . . . Registered Components 1 | . 1 . . . . . . . . . . Zone Layout 1 | . 1 . . . . . . . . . . Fabricator Hacks 1 | . . . . . . 1 . . . . . Network Status 1 | . . . . . . 1 . . . . . Repair Station Hacks 4 | . 4 . . . . . . . . . . Scan Component 2 | . 2 . . . . . . . . . . Repair 2 | . 2 . . . . . . . . . . Recycling Unit Hacks 2 | . 2 . . . . . . . . . . Retrieve Components 2 | . 2 . . . . . . . . . . Scanalyzer . | . . . . . . . . . . . . Garrison Access Hacks . | . . . . . . . . . . . . Unauthorized Hacks 2 | . 1 . . . 1 . . . . . . Terminals 2 | . 1 . . . 1 . . . . . . Botnet 2 | . 1 . . . 1 . . . . . . Fabricators . | . . . . . . . . . . . . Repair Stations . | . . . . . . . . . . . . Recycling Units . | . . . . . . . . . . . . Scanalyzers . | . . . . . . . . . . . . Garrison Access . | . . . . . . . . . . . . Data Cores Recovered 2 | . . . . . 1 1 . . . . . Used . | . . . . . . . . . . . . Hacking Detections 15 | . 4 . . . 5 6 . . . . . Full Trace Events 4 | . 2 . . . 1 1 . . . . . Feedback Events . | . . . . . . . . . . . . Feedback Blocked . | . . . . . . . . . . . . Robot Schematics Acquired . | . . . . . . . . . . . . Robots Built . | . . . . . . . . . . . . Authchips . | . . . . . . . . . . . . Time . | . . . . . . . . . . . . Total Robot Build Rating . | . . . . . . . . . . . . Part Schematics Acquired 1 | . 1 . . . . . . . . . . Parts Built . | . . . . . . . . . . . . Authchips . | . . . . . . . . . . . . Time . | . . . . . . . . . . . . Total Part Build Rating . | . . . . . . . . . . . . Parts Repaired 2 | . 2 . . . . . . . . . . Time 52 | . 52 . . . . . . . . . . Parts Recycled . | . . . . . . . . . . . . Recycled Matter . | . . . . . . . . . . . . Retrieved Matter . | . . . . . . . . . . . . Retrieved Components 14 | . 14 . . . . . . . . . . Parts Scanalyzed . | . . . . . . . . . . . . Part Schematics Acquired . | . . . . . . . . . . . . Parts Damaged . | . . . . . . . . . . . . Bothacking | -11 -10 -10 -10 -9 -8 -7 -7 -7 -7 -6 -6 ------------ Run | Scr Mat Min Exi Min Mat Fac Low Low Zio Pro Fac Used RIF Installer . | . . . . . . . . . . . . Robots Hacked . | . . . . . . . . . . . . Non-combat . | . . . . . . . . . . . . Combat . | . . . . . . . . . . . . Robot Hacks Applied . | . . . . . . . . . . . . Relay Couplers Released 4 | . . . . . . 4 . . . . . Programmers 4 | . . . . . . 4 . . . . . Fabnet Peak Effective % . | . . . . . . . . . . . . Robots Rewired . | . . . . . . . . . . . . Allies Hacked . | . . . . . . . . . . . . Hacks Repelled . | . . . . . . . . . . . . Allies | -11 -10 -10 -10 -9 -8 -7 -7 -7 -7 -6 -6 -------- Run | Scr Mat Min Exi Min Mat Fac Low Low Zio Pro Fac Total Allies . | . . . . . . . . . . . . Largest Group . | . . . . . . . . . . . . Highest-Rated Group . | . . . . . . . . . . . . Highest-Rated Ally . | . . . . . . . . . . . . Total Orders . | . . . . . . . . . . . . Ally Attacks . | . . . . . . . . . . . . Total Damage . | . . . . . . . . . . . . Kills . | . . . . . . . . . . . . Allies Corrupted . | . . . . . . . . . . . . Allies Melted . | . . . . . . . . . . . . Intel | -11 -10 -10 -10 -9 -8 -7 -7 -7 -7 -6 -6 ------- Run | Scr Mat Min Exi Min Mat Fac Low Low Zio Pro Fac Robot Analysis Total 2 | . 2 . . . . . . . . . . Derelict Logs Recovered 3 | . . . . . . . 1 1 . 1 . Drone Launches . | . . . . . . . . . . . . Drone Recoveries . | . . . . . . . . . . . . Exploration | -11 -10 -10 -10 -9 -8 -7 -7 -7 -7 -6 -6 ------------- Run | Scr Mat Min Exi Min Mat Fac Low Low Zio Pro Fac Turns Passed 14256 | 137 1497 505 108 451 1267 2304 2048 1774 2057 1682 426 Spaces Moved 6736 | 57 759 302 68 196 485 1116 860 773 1057 945 118 Core 2 | 2 . . . . . . . . . . . Treads 6733 | 55 759 302 68 196 485 1116 859 773 1057 945 118 Legs 1 | . . . . . . . 1 . . . . Wheels . | . . . . . . . . . . . . Hover . | . . . . . . . . . . . . Flight . | . . . . . . . . . . . . Fastest Speed 50 | 50 160 160 160 160 160 166 188 224 167 167 167 Average Speed 183 | 156 160 160 160 160 173 176 215 224 190 167 167 Slowest Speed 278 | 160 160 160 160 160 250 188 278 224 278 167 167 Overloaded Moves . | . . . . . . . . . . . . Propulsion Burnouts . | . . . . . . . . . . . . Robots Hopped . | . . . . . . . . . . . . Cave-ins Triggered . | . . . . . . . . . . . . Exploration Rate (%) 52 | 3 95 66 11 33 40 23 81 97 85 96 3 Regions Visited 11 Branch Regions 7 Pre-discovered Areas 2 | . . 1 . . . . . . 1 . . Known Exits Taken 2 | . . . . . . 1 . 1 . . . Unknown Exits Taken 9 | 1 1 1 1 1 1 . 1 . 1 1 . Scrap Searched 13 | . . 1 . 1 . . 2 4 3 2 . Spaces Dug 16 | . . . . 8 . . 8 . . . . Terrain Destroyed 225 | . 20 . . 8 . 101 19 13 . 1 63 Melee . | . . . . . . . . . . . . Projectile 36 | . . . . . . 11 2 7 . 1 15 AOE 189 | . 20 . . 8 . 90 17 6 . . 48 Terrain Rammed . | . . . . . . . . . . . . Walls Destroyed . | . . . . . . . . . . . . Machines Disabled . | . . . . . . . . . . . . Actions | -11 -10 -10 -10 -9 -8 -7 -7 -7 -7 -6 -6 --------- Run | Scr Mat Min Exi Min Mat Fac Low Low Zio Pro Fac Total 8081 | 81 950 312 67 328 764 1356 1013 800 1109 1015 286 Wait 742 | . 95 . . 125 106 129 99 6 25 39 118 Move 6725 | 56 758 301 67 195 484 1115 859 772 1056 944 118 Hop . | . . . . . . . . . . . . Pick Up 77 | 7 17 . . 1 19 15 5 1 12 . . Fast Attach 36 | 6 3 . . . 17 3 3 2 2 . . Attach 17 | . 2 . . . 7 2 2 . 2 1 1 Detach 10 | . . . . . 5 4 1 . . . . Swap 34 | . 7 3 . 2 8 1 3 2 2 2 4 Drop 102 | . 13 1 . 1 35 23 9 3 10 3 4 Fire 327 | 12 55 7 . 4 83 63 32 14 . 16 41 Melee 10 | . . . . . . . . . . 10 . Ram . | . . . . . . . . . . . . Kick . | . . . . . . . . . . . . Crush 1 | . . . . . . 1 . . . . . Escape Stasis . | . . . . . . . . . . . . Rewire . | . . . . . . . . . . . . Trap . | . . . . . . . . . . . . Miscellaneous . | . . . . . . . . . . . . Route ------- -11/Scrapyard -10/Materials (discovered 5 exits: [*Mat x3] / [*Min x2]) -10/Mines (discovered 2 exits: [*Mat] / [*Exi]) -10/Exiles -9/Mines -8/Materials -7/Factory (discovered 3 exits: *Fac / *Low x2) -7/Lower Caves -7/Lower Caves (discovered 2 exits: *Fac / *Zio) -7/Zion -6/Proximity Caves -6/Factory History --------- Turn | Location | Event 6 | -11/Scrapyard | Discovered new exit (range 15) 138 | -11/Scrapyard | Entered Materials 280 | -10/Materials | Repaired EM Pulse Gun 308 | -10/Materials | Repaired Lgt. Treads? 317 | -10/Materials | Build established: Mutant 427 | -10/Materials | Discovered new exit (range 6) 579 | -10/Materials | Discovered new exit (range 16) 872 | -10/Materials | Discovered new exit (range 6) 1064 | -10/Materials | Discovered new exit (range 15) 1253 | -10/Materials | Discovered new exit (range 15) 1635 | -10/Materials | Entered Mines 1952 | -10/Mines | Discovered new exit (range 4) 1972 | -10/Mines | Learned location of Storage (-9) 2116 | -10/Mines | Deemed a non-threat by the Exiles lab entrance 2116 | -10/Mines | Discovered new exit (range 5) 2140 | -10/Mines | Entered Exiles 2177 | -10/Exiles | Met 8R-AWN 2214 | -10/Exiles | Discovered new exit (range 14) 2248 | -10/Exiles | Entered Mines 2253 | -9/Mines | Core integrity fell below 50% 2267 | -9/Mines | Discovered new exit (range 9) 2401 | -9/Mines | Assembled infested the area 2404 | -9/Mines | YI-UF0 nonchalantly dropped a Grenade Launcher on the ground 2699 | -9/Mines | Entered Materials 2699 | -8/Materials | Evolved 4 slots: Propulsion x1, Utility x2, Weapon x1 3080 | -8/Materials | Build established: Gunner 3865 | -8/Materials | Discovered new exit (range 13) 3966 | -8/Materials | Entered Factory 3966 | -7/Factory | Evolved 2 slots: Propulsion x1, Utility x1 3967 | -7/Factory | Found Scrap Engine 4003 | -7/Factory | Identified exit to Lower Caves 4039 | -7/Factory | Build established: Scavenger-Tank 4586 | -7/Factory | Build established: Mutant 4654 | -7/Factory | Discovered new exit (range 15) 5040 | -7/Factory | Build established: Tank 5400 | -7/Factory | Build established: Construct 6270 | -7/Factory | Entered Lower Caves 7139 | -7/Lower Caves | Attacked by a faux Warlord 7780 | -7/Lower Caves | Discovered new exit (range 14) 7828 | -7/Lower Caves | Learned Factory trap positions 8318 | -7/Lower Caves | Entered another Lower Caves area 8549 | -7/Lower Caves | Discovered new exit (range 10) 9949 | -7/Lower Caves | Identified exit to Zion 10092 | -7/Lower Caves | Entered Zion 10171 | -7/Zion | System corruption cleaned by Quarantine Array 10471 | -7/Zion | Discovered new exit (range 9) 10643 | -7/Zion | Found CR-A16's Pointy Stick 11790 | -7/Zion | Found Prototype Special Weapon 11790 | -7/Zion | Identified RU-N14's Throwing Claymores 11794 | -7/Zion | Found RU-N14's Throwing Claymores 11813 | -7/Zion | Found RU-N14's Throwing Claymores 11816 | -7/Zion | Found RU-N14's Throwing Claymores 12149 | -7/Zion | Entered Proximity Caves 12464 | -6/Proximity Caves | Learned Factory garrison access intel 12811 | -6/Proximity Caves | Attracted the attention of an 0b10 checkpoint 13271 | -6/Proximity Caves | Spotted B-75 Beast 13310 | -6/Proximity Caves | Revealed the true nature of CR-A16's Pointy Stick 13315 | -6/Proximity Caves | Destroyed B-75 Beast 13728 | -6/Proximity Caves | Discovered new exit (range 15) 13831 | -6/Proximity Caves | Entered Factory 13831 | -6/Factory | Evolved 2 slots: Power x1, Propulsion x1 13832 | -6/Factory | Loaded intel: 105 trap records 13833 | -6/Factory | Loaded intel: 4 garrison access locations 14257 | -6/Factory | Self-destructed Last Messages --------------- 14225_ Arm. Scrap Engine consumes Lgt. Ion Engine. 14225_ K-01 Serf collects debris. 14234_ The unstable cave ceiling collapses. 14235_ R-10 Processor collects Terrain Scan Processor. 14235_ Penetrated by Slug. 14236_ K-01 Serf collects debris. 14237_ H-66 Slayer destroyed. 14237_ K-01 Serf collects debris. 14241_ Slug penetrates R-10 Processor. 14242_ K-01 Serf collects debris. 14243_ Slug penetrates R-10 Processor. 14243_ R-10 Processor destroyed. 14244_ K-01 Serf collects debris. 14245_ G-50 Soldier Adv. Heat Sink severed. 14245_ K-01 Serf collects debris. 14246_ Hvy. Kinetic Construct/C destroyed. 14246_ Arm. Scrap Engine damaged due to network destabilization (-8). 14249_ K-01 Serf collects debris. 14255_ Arm. Scrap Engine reinforces its armored shell (+100). 14256_ K-01 Serf collects debris. Map ----- +----------------------------------------------------+ | ??????????????????????????????????? | | ??????????????????????????????????? | | ???????? ???????????????????????? | | ???????? ??????????????????????? | | ???????? ???^??????????????????? | | ???????? ??????????????????????? | | ???????? ??? ?????????????????? | | ??????? ??????????????????? | | ???????# ????????????????? | | ???????# ????????????????? | | ???????# ?????????????????? | | ???????# ??????????????????? | | ???????# % #####??????????????? | | ???##### g g ??????????????? | | ?? # ; ""????????????????? | | ?? # ; !???????????????????? | | ?# !!!# g #?????????????????????? | | ?# !! # #?????????????????????? | | ?# !! # #?????????????????????? | | ?# #%%k #?????????????????????? | | ?# """ # #?????????????????????? | | ?# """ # #??? ? ??????????????? | | ?# """ # % #?? ??????????????? | | ?# ! #? ??????????????? | | ?# % # !!= ] ?????????????? | | ?# # =@ + !!= ??????????????? | | ?### # k! # !== ??????????????? | | ## !k #???????????? | | ## % = =# #???????????? | | # %k!# #########???????????? | | ## ###???????????????????? | | #% ## ### #???????????????????? | | ### ##########???????????????????? | | # #!???????#???????????????????? | | ?# # ##################??????###??? | | ?### %=+ # ?????? #??? | | ???####=# # """"""" #??? | | ?????# # # """"""" #??? | | ?????#T # !!! =# """"""" #??? | | ####### # !! # """"""" #??? | | # ! [# # !! # #??? | | # # # # """ #??? | | # # #?? ??# """ #??? | | # # #####+##??# """ #??? | | # # #### #??? | | # "" + + #??? | | # "" # #### #??? | | # """ ### #??#######+###### ## | | # """ #?# #????# | | # """ #?# #????# | +----------------------------------------------------+ Best States ------------- Heat Dissipation 59 Energy Generation 18 Energy Capacity 424 Matter Stores 300 Matter Capacity 300 Sight Range 16 Terrain Scan Density 10 Armor Coverage 600 Evasion (%) 40 Targeting Accuracy 16 Recoil Reduction 4 Authchip Count 1 Item Schematics ----------------- Hcp. Storage Unit | -10/Materials | Hacked Robot Schematics ------------------ None Fabricated ------------ Nothing Alien Tech Used ----------------- None Achievements -------------- I'm Back, Baby! Maybe Next Time I'll Detach My Launcher Robot Respite Challenges ------------ None Game ------ Seed HeatMobileFacilitator Manual? 0 Play Time 01:11:37 Cumulative 5.6 hours Start 2022.12.12 @ 22:12:34 End 2022.12.12 @ 23:28:00 Sessions 3 Manual Loads 0 Difficulty Rogue Special Mode None Game No. 4 Rogue 4 Adventurer 0 Explorer 0 Win Type - Total 0 Types 0/0/0/0/0/0/0/0/0 Lore% 5 Gallery% 9 Achievement% 13 Wizard Run 0 Options --------- ASCII 0 Keyboard 0 Movement Mouse Keybinds 0 Fullscreen 1 Font 16/Terminus Map View 76x50 Tactical HUD 1 Map Filters NONE Filters NONE Steam 0 RUN: fdea8ee6-8a91-4729-9781-d2187abe59a2